[Event "10th Cesme Open-B 2024"]
[Site "Cesme"]
[Date "2024.06.25"]
[Round "4"]
[White "Turgut, Hakan"]
[Black "Tezcan, Alper"]
[Result "1-0"]
[ECO "D11"]
[WhiteElo "1979"]
[BlackElo "1936"]
[Annotator "RC"]
[PlyCount "95"]
[EventDate "2024.06.23"]
[EventType "swiss"]
[EventCountry "TUR"]
[SourceTitle "playchess.com"]
[Source "ChessBase"]
[SourceQuality "1"]
[TimeControl "5400+30"]

1. d4 {[%emt 0:04:00]} d5 {[%emt 0:01:00]} 2. Nf3 {[%emt 0:00:30]} Nf6 {[%emt 0:00:00]} 3. g3 {[%emt 0:00:00]} Bf5 {[%emt 0:02:00]} 4. Bg2 {[%emt 0:00:00]} e6 {[%emt 0:01:30]} 5. O-O {[%emt 0:00:00]} Be7 {[%emt 0:02:30]} 6. c4 {[%emt 0:00:00]} c6 {[%emt 0:04:30]} 7. Nc3 {[%emt 0:00:30]} h6 {[%emt 0:05:30]} 8. Nd2 {[%emt 0:04:30]} O-O {[%emt 0:05:30]} 9. e4 {[%emt 0:00:30]} dxe4 {[%emt 0:00:30]} 10. Ndxe4 {[%emt 0:00:30]} Nbd7 {[%emt 0:01:30]} 11. Be3 {[%emt 0:05:30]} Nxe4 {[%emt 0:13:30]} 12. Nxe4 {[%emt 0:00:30]} Nf6 {[%emt 0:02:30]} 13. Nc3 {[%emt 0:04:30]} Ng4 {[%emt 0:11:30]} 14. Bf4 {[%emt 0:08:30]} Qb6 {[%emt 0:05:30]} 15. Na4 {[%emt 0:02:30]} Qa6 {[%emt 0:05:30]} 16. Qb3 {[%emt 0:13:30]} Rad8 {[%emt 0:10:30]} 17. Rad1 {[%emt 0:03:30]} b5 {[%emt 0:04:30]} 18. cxb5 {[%emt 0:00:30]} cxb5 {[%emt 0:01:30]} 19. Nc3 {[%emt 0:09:30]} b4 {[%emt 0:03:15]} 20. Ne4 {[%emt 0:00:30]} Qb6 {[%emt 0:00:35]} 21. h3 {[%emt 0:00:30]} Nf6 {[%emt 0:02:18]} 22. Nxf6+ {[%emt 0:00:30]} Bxf6 {[%emt 0:00:00]} 23. d5 {[%emt 0:03:30]} exd5 {[%emt 0:00:55]} 24. Bxd5 {[%emt 0:02:30]} Bxh3 {[%emt 0:00:49]} 25. Be3 {[%emt 0:00:30]} Qc7 {[%emt 0:04:16]} 26. Rfe1 {[%emt 0:02:30]} Bg4 {[%emt 0:05:36]} 27. Rd3 {[%emt 0:04:30]} Qe5 {[%emt 0:01:49]} 28. Qxb4 {[%emt 0:09:30]} Bf5 {[%emt 0:02:18]} 29. Bc5 {[%emt 0:00:30]} Qxb2 {[%emt 0:00:48]} 30. Qxb2 {[%emt 0:00:30]} Bxb2 {[%emt 0:00:16]} 31. Rb3 {[%emt 0:00:30]} Rxd5 {[%emt 0:01:23]} 32. Bxf8 {[%emt 0:00:30]} Bd4 {[%emt 0:00:16]} 33. Ba3 {[%emt 0:00:30]} Ra5 {[%emt 0:00:58]} 34. Bb2 {[%emt 0:01:30]} Bb6 {[%emt 0:00:14]} 35. a3 {[%emt 0:00:30]} Be6 {[%emt 0:00:21]} 36. Rd3 {[%emt 0:00:30]} Rb5 {[%emt 0:00:55]} 37. Bc1 {[%emt 0:01:52]} Rh5 {[%emt 0:00:44]} 38. Kg2 {[%emt 0:02:39]} Bh3+ {[%emt 0:01:32]} 39. Kg1 {[%emt 0:00:23]} Be6 {[%emt 0:00:00]} 40. Re4 {[%emt 0:00:44]} Kh7 {[%emt 0:00:44]} 41. Be3 {[%emt 0:01:23]} Bc7 {[%emt 0:00:36]} 42. Rc3 {[%emt 0:04:06]} Bd8 {[%emt 0:00:14]} 43. Rc5 {[%emt 0:01:00]} g5 {[%emt 0:00:58]} 44. g4 {[%emt 0:02:20]} Rh4 {[%emt 0:00:14]} 45. f3 {[%emt 0:00:00]} Bb6 {[%emt 0:00:26]} 46. Rc3 {[%emt 0:01:37]} Bd5 {[%emt 0:00:53]} 47. Re5 {[%emt 0:00:35]} Ba5 {[%emt 0:00:35]} 48. Rc5 {[%emt 0:01:35]} 1-0

[Event "10th Cesme Open-B 2024"]
[Site "Cesme"]
[Date "2024.06.25"]
[Round "4"]
[White "Masiya, Mfundo"]
[Black "Uzdemir, Ali Poyraz"]
[Result "1-0"]
[ECO "B53"]
[WhiteElo "1971"]
[BlackElo "1936"]
[Annotator "RC"]
[PlyCount "143"]
[EventDate "2024.06.23"]
[EventType "swiss"]
[EventCountry "TUR"]
[SourceTitle "playchess.com"]
[Source "ChessBase"]
[SourceQuality "1"]
[TimeControl "5400+30"]

1. e4 {[%emt 0:13:00]} c5 {[%emt 0:01:00]} 2. Nf3 {[%emt 0:00:00]} d6 {[%emt 0:00:00]} 3. d4 {[%emt 0:01:00]} cxd4 {[%emt 0:00:00]} 4. Qxd4 {[%emt 0:03:30]} Nc6 {[%emt 0:00:30]} 5. Bb5 {[%emt 0:00:00]} Bd7 {[%emt 0:00:00]} 6. Bxc6 {[%emt 0:00:00]} Bxc6 {[%emt 0:00:00]} 7. Nc3 {[%emt 0:00:00]} Nf6 {[%emt 0:00:30]} 8. Bg5 {[%emt 0:00:00]} h6 {[%emt 0:11:30]} 9. Bxf6 {[%emt 0:01:30]} gxf6 {[%emt 0:00:00]} 10. O-O-O {[%emt 0:00:00]} Qa5 {[%emt 0:09:00]} 11. Rhe1 {[%emt 0:01:00]} Bg7 {[%emt 0:00:30]} 12. Kb1 {[%emt 0:03:30]} O-O {[%emt 0:06:30]} 13. Qd2 {[%emt 0:11:30]} Qc7 {[%emt 0:07:30]} 14. Nd4 {[%emt 0:02:30]} e6 {[%emt 0:07:30]} 15. Re3 {[%emt 0:15:30]} Rad8 {[%emt 0:04:30]} 16. Rg3 {[%emt 0:02:30]} d5 {[%emt 0:00:30]} 17. Ndb5 {[%emt 0:30:06]} Bxb5 {[%emt 0:07:30]} 18. Nxb5 {[%emt 0:00:14]} Qe5 {[%emt 0:00:00]} 19. f4 {[%emt 0:03:20]} Qxe4 {[%emt 0:01:00]} 20. f5 {[%emt 0:00:41]} Kh7 {[%emt 0:00:30]} 21. fxe6 {[%emt 0:03:51]} fxe6 {[%emt 0:22:30]} 22. Nd4 {[%emt 0:00:44]} f5 {[%emt 0:07:18]} 23. Rxg7+ {[%emt 0:00:45]} Kxg7 {[%emt 0:00:30]} 24. Re1 {[%emt 0:00:00]} Qh4 {[%emt 0:02:47]} 25. Nxe6+ {[%emt 0:00:00]} Kh7 {[%emt 0:00:59]} 26. Nxf8+ {[%emt 0:01:02]} Rxf8 {[%emt 0:00:04]} 27. g3 {[%emt 0:00:17]} Qd8 {[%emt 0:01:05]} 28. Qd4 {[%emt 0:01:02]} Re8 {[%emt 0:00:54]} 29. Rxe8 {[%emt 0:02:17]} Qxe8 {[%emt 0:00:07]} 30. a3 {[%emt 0:00:00]} Qb5 {[%emt 0:00:14]} 31. b3 {[%emt 0:01:15]} a6 {[%emt 0:01:02]} 32. Kb2 {[%emt 0:01:11]} Qc6 {[%emt 0:00:50]} 33. a4 {[%emt 0:01:17]} b6 {[%emt 0:02:56]} 34. Qd3 {[%emt 0:01:09]} Qf6+ {[%emt 0:05:53]} 35. Ka2 {[%emt 0:00:12]} a5 {[%emt 0:01:16]} 36. Qxd5 {[%emt 0:00:20]} Kg6 {[%emt 0:00:55]} 37. Qd3 {[%emt 0:01:45]} Kg7 {[%emt 0:00:34]} 38. Qf3 {[%emt 0:01:20]} Qe6 {[%emt 0:00:31]} 39. Kb2 {[%emt 0:00:21]} Kg6 {[%emt 0:00:41]} 40. Qc3 {[%emt 0:00:12]} Qe4 {[%emt 0:00:00]} 41. Qh8 {[%emt 0:01:21]} Qe6 {[%emt 0:00:09]} 42. Qd4 {[%emt 0:00:00]} Kh7 {[%emt 0:01:11]} 43. Qf4 {[%emt 0:00:52]} Qf6+ {[%emt 0:00:11]} 44. Ka2 {[%emt 0:00:00]} Qe6 {[%emt 0:00:29]} 45. h3 {[%emt 0:00:34]} Kg6 {[%emt 0:00:37]} 46. Qd4 {[%emt 0:00:48]} Qc6 {[%emt 0:00:22]} 47. Qd3 {[%emt 0:00:00]} Kg5 {[%emt 0:00:40]} 48. Qe3+ {[%emt 0:00:22]} Kg6 {[%emt 0:00:22]} 49. Qd3 {[%emt 0:01:22]} Kg5 {[%emt 0:00:40]} 50. Qd8+ {[%emt 0:00:46]} Kg6 {[%emt 0:00:43]} 51. Kb2 {[%emt 0:00:09]} Qe6 {[%emt 0:00:00]} 52. Qd4 {[%emt 0:01:00]} Qc6 {[%emt 0:00:38]} 53. Qe5 {[%emt 0:00:01]} h5 {[%emt 0:00:33]} 54. Qd4 {[%emt 0:00:44]} Qe6 {[%emt 0:00:20]} 55. Qh8 {[%emt 0:00:33]} Qd5 {[%emt 0:01:22]} 56. Qe8+ {[%emt 0:00:14]} Kh6 {[%emt 0:00:00]} 57. Qe3+ {[%emt 0:00:13]} Kg7 {[%emt 0:00:15]} 58. Ka2 {[%emt 0:00:45]} Qe4 {[%emt 0:01:02]} 59. Qxe4 {[%emt 0:00:30]} fxe4 {[%emt 0:00:30]} 60. Kb2 {[%emt 0:00:30]} Kf6 {[%emt 0:00:30]} 61. Kc3 {[%emt 0:00:30]} Kf5 {[%emt 0:00:30]} 62. Kd2 {[%emt 0:00:02]} Ke5 {[%emt 0:00:00]} 63. Ke3 {[%emt 0:00:17]} Kd5 {[%emt 0:00:00]} 64. c3 {[%emt 0:00:33]} Ke5 {[%emt 0:00:00]} 65. g4 {[%emt 0:00:21]} h4 {[%emt 0:00:00]} 66. c4 {[%emt 0:00:11]} Kd6 {[%emt 0:00:00]} 67. Kxe4 {[%emt 0:00:12]} Kc5 {[%emt 0:00:00]} 68. Kd3 {[%emt 0:00:29]} Kb4 {[%emt 0:00:00]} 69. Kc2 {[%emt 0:00:00]} Ka3 {[%emt 0:00:00]} 70. Kc3 {[%emt 0:01:22]} Ka2 {[%emt 0:00:00]} 71. g5 {[%emt 0:00:18]} Ka3 {[%emt 0:00:00]} 72. Kd3 {[%emt 0:00:24]} 1-0

[Event "10th Cesme Open-B 2024"]
[Site "Cesme"]
[Date "2024.06.25"]
[Round "4"]
[White "Ilgaz, Yusuf Kerem"]
[Black "Cakir, Mert"]
[Result "1-0"]
[ECO "B45"]
[WhiteElo "1966"]
[BlackElo "1828"]
[Annotator "NA RC"]
[PlyCount "65"]
[EventDate "2024.06.23"]
[EventType "swiss"]
[EventCountry "TUR"]
[SourceTitle "playchess.com"]
[Source "ChessBase"]
[SourceQuality "1"]
[TimeControl "5400+30"]

1. e4 {[%emt 0:02:00]} c5 {[%emt 0:01:00]} 2. Nf3 {[%emt 0:00:30]} e6 {[%emt 0:00:00]} 3. d4 {[%emt 0:00:00]} cxd4 {[%emt 0:00:00]} 4. Nxd4 {[%emt 0:00:00]} Nc6 {[%emt 0:00:30]} 5. Nc3 {[%emt 0:00:30]} Nf6 {[%emt 0:00:30]} 6. Nxc6 {[%emt 0:00:00]} bxc6 {[%emt 0:00:00]} 7. e5 {[%emt 0:00:00]} Nd5 {[%emt 0:00:00]} 8. Ne4 {[%emt 0:00:00]} Qc7 {[%emt 0:00:30]} 9. f4 {[%emt 0:00:00]} Qb6 {[%emt 0:00:00]} 10. c4 {[%emt 0:00:00]} Bb4+ {[%emt 0:01:00]} 11. Ke2 {[%emt 0:00:00]} Ba6 {[%emt 0:00:00]} 12. Kf3 {[%emt 0:00:00]} f5 {[%emt 0:00:00]} 13. exf6 {[%emt 0:00:00]} Nxf6 {[%emt 0:00:30]} 14. c5 {[%emt 0:00:30]} Bxc5 {[%emt 0:03:30]} 15. Nxc5 {[%emt 0:00:00]} Bxf1 {[%emt 0:00:30]} 16. Na4 {[%emt 0:00:00]} Bxg2+ {[%emt 0:04:30]} 17. Kxg2 {[%emt 0:00:30]} Qb4 {[%emt 0:03:30]} 18. Re1 {[%emt 0:00:00]} O-O {[%emt 0:01:30]} 19. a3 {[%emt 0:18:00]} Qb5 {[%emt 0:08:30]} 20. Re5 {[%emt 0:10:30]} d5 {[%emt 0:06:30]} 21. Qd4 {[%emt 0:13:30]} Rae8 {[%emt 0:05:30]} 22. Nc5 {[%emt 0:03:30]} Ng4 {[%emt 0:06:30]} 23. a4 {[%emt 0:02:30]} Qb6 {[%emt 0:04:30]} 24. Rxe6 {[%emt 0:04:30]} Qd8 {[%emt 0:01:30]} 25. Bd2 {[%emt 0:07:30]} Qh4 {[%emt 0:01:30]} 26. h3 {[%emt 0:01:30]} Rxe6 {[%emt 0:01:30]} 27. Nxe6 {[%emt 0:00:30]} Rf6 {[%emt 0:00:30]} 28. Re1 {[%emt 0:04:30]} Rg6 {[%emt 0:02:30]} 29. Ng5 {[%emt 0:01:30]} Nf6 {[%emt 0:00:30]} 30. Qxa7 {[%emt 0:00:30]} Rxg5+ {[%emt 0:00:30]} 31. fxg5 {[%emt 0:00:30]} Ne4 {[%emt 0:00:30]} 32. Qb8+ {[%emt 0:00:30]} Kf7 {[%emt 0:00:30]} 33. Qf4+ {[%emt 0:00:00]} 1-0

[Event "10th Cesme Open-B 2024"]
[Site "Cesme"]
[Date "2024.06.25"]
[Round "4"]
[White "Yildiz, Talat"]
[Black "Yilmaz, Kerem Tuna"]
[Result "1-0"]
[ECO "C54"]
[WhiteElo "1891"]
[BlackElo "1962"]
[Annotator "NA RC"]
[PlyCount "93"]
[EventDate "2024.06.23"]
[EventType "swiss"]
[EventCountry "TUR"]
[SourceTitle "playchess.com"]
[Source "ChessBase"]
[SourceQuality "1"]
[TimeControl "5400+30"]

1. e4 {[%emt 0:01:00]} e5 {[%emt 0:02:00]} 2. Nf3 {[%emt 0:00:00]} Nc6 {[%emt 0:01:30]} 3. Bc4 {[%emt 0:00:00]} Bc5 {[%emt 0:00:30]} 4. c3 {[%emt 0:00:30]} Nf6 {[%emt 0:00:30]} 5. d4 {[%emt 0:00:30]} exd4 {[%emt 0:00:00]} 6. e5 {[%emt 0:00:00]} d5 {[%emt 0:00:00]} 7. Bb5 {[%emt 0:00:00]} Ne4 {[%emt 0:02:30]} 8. cxd4 {[%emt 0:00:30]} Bb6 {[%emt 0:00:30]} 9. Nc3 {[%emt 0:00:00]} O-O {[%emt 0:03:30]} 10. Be3 {[%emt 0:00:00]} Bg4 {[%emt 0:01:30]} 11. h3 {[%emt 0:00:30]} Bh5 {[%emt 0:00:00]} 12. Qc2 {[%emt 0:00:00]} Bg6 {[%emt 0:00:00]} 13. Qb3 {[%emt 0:00:00]} Ne7 {[%emt 0:00:30]} 14. O-O {[%emt 0:00:30]} c6 {[%emt 0:03:30]} 15. Bd3 {[%emt 0:00:30]} Nd2 {[%emt 0:00:00]} 16. Nxd2 {[%emt 0:00:30]} Bxd3 {[%emt 0:00:00]} 17. Rfe1 {[%emt 0:00:30]} Bf5 {[%emt 0:00:30]} 18. Na4 {[%emt 0:02:30]} Ng6 {[%emt 0:09:30]} 19. Rac1 {[%emt 0:03:30]} Qc8 {[%emt 0:23:30]} 20. Nxb6 {[%emt 0:28:30]} axb6 {[%emt 0:00:30]} 21. Kh2 {[%emt 0:00:30]} Ra5 {[%emt 0:12:30]} 22. a3 {[%emt 0:05:30]} Qb8 {[%emt 0:02:30]} 23. f4 {[%emt 0:02:30]} f6 {[%emt 0:06:30]} 24. Qc3 {[%emt 0:07:30]} Ra4 {[%emt 0:03:30]} 25. b4 {[%emt 0:04:30]} Qa8 {[%emt 0:02:30]} 26. Ra1 {[%emt 0:00:30]} Qa6 {[%emt 0:01:30]} 27. g4 {[%emt 0:03:30]} Qd3 {[%emt 0:03:30]} 28. Qxd3 {[%emt 0:05:30]} Bxd3 {[%emt 0:00:30]} 29. f5 {[%emt 0:00:30]} fxe5 {[%emt 0:06:35]} 30. fxg6 {[%emt 0:00:30]} e4 {[%emt 0:00:01]} 31. gxh7+ {[%emt 0:00:30]} Kxh7 {[%emt 0:00:01]} 32. Ra2 {[%emt 0:04:30]} Rfa8 {[%emt 0:01:43]} 33. Rea1 {[%emt 0:00:30]} b5 {[%emt 0:00:12]} 34. Kg3 {[%emt 0:01:30]} b6 {[%emt 0:00:25]} 35. h4 {[%emt 0:00:30]} Rf8 {[%emt 0:01:59]} 36. h5 {[%emt 0:03:30]} g6 {[%emt 0:02:37]} 37. hxg6+ {[%emt 0:00:30]} Kxg6 {[%emt 0:00:01]} 38. Rh1 {[%emt 0:00:30]} Rfa8 {[%emt 0:00:22]} 39. Rh6+ {[%emt 0:00:30]} Kg7 {[%emt 0:00:08]} 40. Rxc6 {[%emt 0:00:30]} Rxb4 {[%emt 0:00:05]} 41. axb4 {[%emt 0:01:30]} Rxa2 {[%emt 0:00:02]} 42. Kf4 {[%emt 0:01:30]} Rb2 {[%emt 0:00:40]} 43. Kf5 {[%emt 0:00:30]} Rxb4 {[%emt 0:00:11]} 44. Rc7+ {[%emt 0:02:30]} Kg8 {[%emt 0:00:22]} 45. Kf6 {[%emt 0:00:30]} Rb2 {[%emt 0:00:16]} 46. Rc8+ {[%emt 0:00:30]} Kh7 {[%emt 0:00:30]} 47. g5 {[%emt 0:00:00]} 1-0

[Event "10th Cesme Open-B 2024"]
[Site "Cesme"]
[Date "2024.06.25"]
[Round "4"]
[White "Colak, Tugay"]
[Black "Kocakaplan, Emre"]
[Result "0-1"]
[ECO "C57"]
[WhiteElo "1878"]
[BlackElo "1944"]
[Annotator "NA RC"]
[PlyCount "60"]
[EventDate "2024.06.23"]
[EventType "swiss"]
[EventCountry "TUR"]
[SourceTitle "playchess.com"]
[Source "ChessBase"]
[SourceQuality "1"]
[TimeControl "5400+30"]

1. e4 {[%emt 0:01:00]} e5 {[%emt 0:01:00]} 2. Nf3 {[%emt 0:00:00]} Nc6 {[%emt 0:00:00]} 3. Bc4 {[%emt 0:00:00]} Nf6 {[%emt 0:00:00]} 4. Ng5 {[%emt 0:00:30]} d5 {[%emt 0:00:30]} 5. exd5 {[%emt 0:00:00]} b5 {[%emt 0:03:30]} 6. Bf1 {[%emt 0:00:00]} Nd4 {[%emt 0:00:00]} 7. c3 {[%emt 0:00:30]} Nxd5 {[%emt 0:00:00]} 8. cxd4 {[%emt 0:10:30]} Qxg5 {[%emt 0:00:30]} 9. Bxb5+ {[%emt 0:00:30]} Kd8 {[%emt 0:00:00]} 10. Qf3 {[%emt 0:04:30]} Bb7 {[%emt 0:01:00]} 11. O-O {[%emt 0:21:30]} Rb8 {[%emt 0:00:30]} 12. d3 {[%emt 0:01:30]} Qg6 {[%emt 0:21:30]} 13. Qg3 {[%emt 0:20:30]} exd4 {[%emt 0:04:30]} 14. Bc4 {[%emt 0:10:30]} Bd6 {[%emt 0:04:30]} 15. Qxg6 {[%emt 0:00:30]} hxg6 {[%emt 0:00:30]} 16. h3 {[%emt 0:00:00]} Bc6 {[%emt 0:06:30]} 17. Na3 {[%emt 0:02:00]} f6 {[%emt 0:11:30]} 18. Nc2 {[%emt 0:00:30]} Rh4 {[%emt 0:00:30]} 19. Re1 {[%emt 0:06:34]} Ba8 {[%emt 0:17:30]} 20. b4 {[%emt 0:01:24]} Nxb4 {[%emt 0:06:30]} 21. Nxb4 {[%emt 0:02:16]} Bxb4 {[%emt 0:00:00]} 22. Rb1 {[%emt 0:00:27]} Rb6 {[%emt 0:01:00]} 23. Re2 {[%emt 0:04:38]} g5 {[%emt 0:03:52]} 24. a3 {[%emt 0:07:22]} Bd6 {[%emt 0:01:19]} 25. Bb2 {[%emt 0:01:54]} Bc6 {[%emt 0:02:05]} 26. Rbe1 {[%emt 0:00:22]} g4 {[%emt 0:01:57]} 27. Bxd4 {[%emt 0:02:58]} gxh3 {[%emt 0:03:24]} 28. Bxb6 {[%emt 0:00:08]} hxg2 {[%emt 0:02:12]} 29. Re4 {[%emt 0:02:22]} Rh1+ {[%emt 0:00:23]} 30. Kxg2 {[%emt 0:00:01]} Rxe1 {[%emt 0:00:00]} 0-1

[Event "10th Cesme Open-B 2024"]
[Site "Cesme"]
[Date "2024.06.25"]
[Round "4"]
[White "Berikkyzy Alanna"]
[Black "Atis, Hasan"]
[Result "0-1"]
[ECO "B27"]
[WhiteElo "1871"]
[BlackElo "1988"]
[Annotator "NA RC"]
[PlyCount "58"]
[EventDate "2024.06.23"]
[EventType "swiss"]
[EventCountry "TUR"]
[SourceTitle "playchess.com"]
[Source "ChessBase"]
[SourceQuality "1"]
[TimeControl "5400+30"]

1. e4 {[%emt 0:01:00]} c5 {[%emt 0:01:00]} 2. Nf3 {[%emt 0:00:30]} b6 {[%emt 0:00:00]} 3. d4 {[%emt 0:00:30]} cxd4 {[%emt 0:01:00]} 4. Nxd4 {[%emt 0:00:30]} Bb7 {[%emt 0:00:00]} 5. Nc3 {[%emt 0:03:30]} a6 {[%emt 0:00:00]} 6. Be3 {[%emt 0:00:30]} e6 {[%emt 0:00:00]} 7. f3 {[%emt 0:01:30]} Qc7 {[%emt 0:00:00]} 8. g4 {[%emt 0:01:30]} Bb4 {[%emt 0:03:30]} 9. Qd2 {[%emt 0:01:30]} d5 {[%emt 0:01:30]} 10. exd5 {[%emt 0:01:30]} Bxd5 {[%emt 0:00:30]} 11. Be2 {[%emt 0:06:30]} Nd7 {[%emt 0:05:30]} 12. Kf2 {[%emt 0:10:30]} Bxc3 {[%emt 0:03:30]} 13. bxc3 {[%emt 0:00:30]} Ne7 {[%emt 0:01:30]} 14. Rad1 {[%emt 0:09:30]} O-O {[%emt 0:07:30]} 15. h4 {[%emt 0:10:30]} b5 {[%emt 0:08:30]} 16. h5 {[%emt 0:02:30]} Rfc8 {[%emt 0:00:30]} 17. c4 {[%emt 0:01:30]} Bxc4 {[%emt 0:00:30]} 18. h6 {[%emt 0:00:30]} Bxe2 {[%emt 0:06:30]} 19. Nxe2 {[%emt 0:02:30]} Nd5 {[%emt 0:00:30]} 20. Qd4 {[%emt 0:00:30]} Qe5 {[%emt 0:01:30]} 21. hxg7 {[%emt 0:02:30]} Rxc2 {[%emt 0:17:30]} 22. Qd3 {[%emt 0:09:30]} Qxe3+ {[%emt 0:00:30]} 23. Qxe3 {[%emt 0:00:00]} Nxe3 {[%emt 0:00:30]} 24. Kxe3 {[%emt 0:00:00]} Nf6 {[%emt 0:01:30]} 25. Nf4 {[%emt 0:02:30]} Rac8 {[%emt 0:00:30]} 26. g5 {[%emt 0:00:30]} R8c3+ {[%emt 0:04:30]} 27. Kd4 {[%emt 0:02:30]} Rxf3 {[%emt 0:04:30]} 28. Ke5 {[%emt 0:02:30]} Ng4+ {[%emt 0:03:30]} 29. Ke4 {[%emt 0:01:30]} Re3+ {[%emt 0:00:00]} 0-1

[Event "10th Cesme Open-B 2024"]
[Site "Cesme"]
[Date "2024.06.25"]
[Round "4"]
[White "Hamurcu, Mehmet"]
[Black "Korkmaz, Necmettin"]
[Result "1/2-1/2"]
[ECO "C17"]
[WhiteElo "1866"]
[BlackElo "1999"]
[Annotator "NA RC"]
[PlyCount "79"]
[EventDate "2024.06.23"]
[EventType "swiss"]
[EventCountry "TUR"]
[SourceTitle "playchess.com"]
[Source "ChessBase"]
[SourceQuality "1"]
[TimeControl "5400+30"]

1. e4 {[%emt 0:07:00]} e6 {[%emt 0:01:00]} 2. d4 {[%emt 0:00:30]} d5 {[%emt 0:00:30]} 3. Nc3 {[%emt 0:00:30]} Bb4 {[%emt 0:03:30]} 4. e5 {[%emt 0:00:30]} c5 {[%emt 0:01:30]} 5. Bd2 {[%emt 0:00:00]} Ne7 {[%emt 0:07:30]} 6. Nf3 {[%emt 0:11:00]} Nbc6 {[%emt 0:12:30]} 7. Bd3 {[%emt 0:02:30]} Nxd4 {[%emt 0:05:30]} 8. Nxd4 {[%emt 0:01:30]} cxd4 {[%emt 0:00:00]} 9. Nb5 {[%emt 0:00:00]} Bxd2+ {[%emt 0:01:00]} 10. Qxd2 {[%emt 0:00:00]} O-O {[%emt 0:06:30]} 11. Nxd4 {[%emt 0:11:30]} Nc6 {[%emt 0:01:30]} 12. Nxc6 {[%emt 0:03:30]} bxc6 {[%emt 0:00:30]} 13. O-O {[%emt 0:00:30]} Qb6 {[%emt 0:07:30]} 14. c3 {[%emt 0:01:30]} Ba6 {[%emt 0:00:30]} 15. Bxa6 {[%emt 0:05:30]} Qxa6 {[%emt 0:00:00]} 16. f4 {[%emt 0:00:00]} Rab8 {[%emt 0:03:00]} 17. b3 {[%emt 0:01:00]} Rfd8 {[%emt 0:02:30]} 18. f5 {[%emt 0:04:30]} exf5 {[%emt 0:00:30]} 19. Qg5 {[%emt 0:00:30]} Rf8 {[%emt 0:12:30]} 20. h4 {[%emt 0:10:30]} c5 {[%emt 0:05:30]} 21. Rxf5 {[%emt 0:03:30]} Rxb3 {[%emt 0:11:46]} 22. Raf1 {[%emt 0:00:30]} Rbb8 {[%emt 0:00:38]} 23. Rf6 {[%emt 0:02:30]} Qe2 {[%emt 0:02:34]} 24. h5 {[%emt 0:03:30]} d4 {[%emt 0:02:48]} 25. cxd4 {[%emt 0:01:30]} cxd4 {[%emt 0:00:26]} 26. R1f3 {[%emt 0:06:30]} h6 {[%emt 0:06:01]} 27. Rxh6 {[%emt 0:03:30]} Qe1+ {[%emt 0:02:12]} 28. Kh2 {[%emt 0:01:48]} Rb5 {[%emt 0:00:33]} 29. Re6 {[%emt 0:11:41]} fxe6 {[%emt 0:03:25]} 30. Rxf8+ {[%emt 0:00:02]} Kxf8 {[%emt 0:00:21]} 31. Qd8+ {[%emt 0:00:30]} Kf7 {[%emt 0:00:30]} 32. Qd7+ {[%emt 0:00:00]} Kf8 {[%emt 0:00:00]} 33. Qxb5 {[%emt 0:04:48]} Qh4+ {[%emt 0:00:39]} 34. Kg1 {[%emt 0:00:00]} Qe4 {[%emt 0:00:42]} 35. Qc5+ {[%emt 0:03:59]} Kf7 {[%emt 0:01:17]} 36. Qc7+ {[%emt 0:00:37]} Kg8 {[%emt 0:00:57]} 37. Qc8+ {[%emt 0:00:05]} Kh7 {[%emt 0:00:06]} 38. Qxe6 {[%emt 0:00:05]} Qe1+ {[%emt 0:00:51]} 39. Kh2 {[%emt 0:00:02]} Qh4+ {[%emt 0:00:21]} 40. Kg1 {[%emt 0:00:01]} 1/2-1/2

[Event "10th Cesme Open-B 2024"]
[Site "Cesme"]
[Date "2024.06.25"]
[Round "4"]
[White "Kolat, Ata"]
[Black "Dogan, Umut Anil"]
[Result "1/2-1/2"]
[ECO "D00"]
[WhiteElo "1858"]
[BlackElo "1982"]
[Annotator "NA RC"]
[PlyCount "51"]
[EventDate "2024.06.23"]
[EventType "swiss"]
[EventCountry "TUR"]
[SourceTitle "playchess.com"]
[Source "ChessBase"]
[SourceQuality "1"]
[TimeControl "5400+30"]

1. d4 {[%emt 0:01:00]} d5 {[%emt 0:01:00]} 2. Bf4 {[%emt 0:00:00]} c5 {[%emt 0:00:30]} 3. e3 {[%emt 0:00:00]} Nc6 {[%emt 0:00:30]} 4. c3 {[%emt 0:01:30]} Nf6 {[%emt 0:00:30]} 5. Nd2 {[%emt 0:00:30]} Bf5 {[%emt 0:00:30]} 6. Ngf3 {[%emt 0:02:30]} Qb6 {[%emt 0:00:30]} 7. Qb3 {[%emt 0:02:30]} c4 {[%emt 0:00:30]} 8. Qxb6 {[%emt 0:00:30]} axb6 {[%emt 0:00:30]} 9. Nh4 {[%emt 0:01:30]} Bc2 {[%emt 0:18:30]} 10. Rc1 {[%emt 0:04:30]} Bg6 {[%emt 0:00:30]} 11. Nxg6 {[%emt 0:00:30]} hxg6 {[%emt 0:00:30]} 12. a3 {[%emt 0:01:30]} b5 {[%emt 0:00:30]} 13. h3 {[%emt 0:01:30]} e6 {[%emt 0:00:30]} 14. Be2 {[%emt 0:02:30]} Kd7 {[%emt 0:01:30]} 15. Bf3 {[%emt 0:00:30]} Bd6 {[%emt 0:00:30]} 16. Bxd6 {[%emt 0:01:30]} Kxd6 {[%emt 0:00:30]} 17. e4 {[%emt 0:00:30]} Nh5 {[%emt 0:05:30]} 18. g3 {[%emt 0:02:30]} f5 {[%emt 0:01:30]} 19. exd5 {[%emt 0:02:30]} exd5 {[%emt 0:00:00]} 20. Bxh5 {[%emt 0:01:30]} Rxh5 {[%emt 0:02:00]} 21. Nf3 {[%emt 0:01:30]} Re8+ {[%emt 0:07:30]} 22. Kd2 {[%emt 0:03:30]} Re4 {[%emt 0:01:30]} 23. h4 {[%emt 0:02:30]} Rh8 {[%emt 0:09:30]} 24. Ng5 {[%emt 0:01:30]} Re7 {[%emt 0:00:30]} 25. Rce1 {[%emt 0:00:30]} Rhe8 {[%emt 0:01:30]} 26. Rxe7 {[%emt 0:00:00]} 1/2-1/2